[Event "Early-Titled-Tuesday-Blitz-September-12-2023"]
[Site "Chess.com"]
[Date "2023.09.12"]
[Round "2"]
[White "Zohid6"]
[Black "LuisFSiles"]
[Result "1-0"]
[WhiteElo "2710"]
[BlackElo "2360"]
[TimeControl "180+1"]
[EndTime "8:18:46 PDT"]
[Termination "Zohid6 won by checkmate"]

1. d4 {[%clk 0:03:00.9]} 1... Nf6 {[%clk 0:02:59]} 2. Nc3 {[%clk 0:03:01]} 2...
d5 {[%clk 0:02:57.8]} 3. Bf4 {[%clk 0:03:00.3]} 3... c5 {[%clk 0:02:56.2]} 4. e4
{[%clk 0:02:58.8]} 4... Nxe4 {[%clk 0:02:53.3]} 5. Nxe4 {[%clk 0:02:59]} 5...
dxe4 {[%clk 0:02:53.2]} 6. dxc5 {[%clk 0:02:59.9]} 6... Qa5+ {[%clk 0:02:50.8]}
7. c3 {[%clk 0:02:59.2]} 7... Qxc5 {[%clk 0:02:51]} 8. Qa4+ {[%clk 0:02:58]}
8... Nc6 {[%clk 0:02:48.6]} 9. Qxe4 {[%clk 0:02:58]} 9... Bf5 {[%clk 0:02:45.1]}
10. Qa4 {[%clk 0:02:57.9]} 10... e5 {[%clk 0:02:35.8]} 11. Be3 {[%clk
0:02:57.8]} 11... Qa5 {[%clk 0:02:27.8]} 12. Qxa5 {[%clk 0:02:57.4]} 12... Nxa5
{[%clk 0:02:27.7]} 13. O-O-O {[%clk 0:02:58.3]} 13... Nc6 {[%clk 0:02:23.9]} 14.
Bc4 {[%clk 0:02:48.8]} 14... Be7 {[%clk 0:02:17.2]} 15. Ne2 {[%clk 0:02:48.7]}
15... Rc8 {[%clk 0:02:08.3]} 16. Ng3 {[%clk 0:02:41.9]} 16... Bg6 {[%clk
0:01:53.4]} 17. Bd3 {[%clk 0:02:40.2]} 17... Bxd3 {[%clk 0:01:48.5]} 18. Rxd3
{[%clk 0:02:41.1]} 18... g6 {[%clk 0:01:43.1]} 19. Rhd1 {[%clk 0:02:33.4]} 19...
Rd8 {[%clk 0:01:36.3]} 20. Rxd8+ {[%clk 0:02:31.3]} 20... Bxd8 {[%clk
0:01:36.5]} 21. Ne4 {[%clk 0:02:30.8]} 21... Be7 {[%clk 0:01:34.3]} 22. b4
{[%clk 0:02:15.5]} 22... f5 {[%clk 0:01:31.4]} 23. Nd6+ {[%clk 0:02:15.4]} 23...
Bxd6 {[%clk 0:01:31.3]} 24. Rxd6 {[%clk 0:02:15.3]} 24... a6 {[%clk 0:01:09.3]}
25. a4 {[%clk 0:02:08.3]} 25... Rf8 {[%clk 0:00:47.3]} 26. b5 {[%clk 0:01:49.9]}
26... axb5 {[%clk 0:00:45.2]} 27. axb5 {[%clk 0:01:50.8]} 27... Nd8 {[%clk
0:00:43.7]} 28. Rd5 {[%clk 0:01:24.4]} 28... e4 {[%clk 0:00:39.4]} 29. c4 {[%clk
0:01:15.1]} 29... Rf7 {[%clk 0:00:35.7]} 30. Kc2 {[%clk 0:01:02]} 30... Rd7
{[%clk 0:00:35.6]} 31. Re5+ {[%clk 0:01:01.8]} 31... Re7 {[%clk 0:00:33.7]} 32.
Rc5 {[%clk 0:01:00.8]} 32... Ne6 {[%clk 0:00:30.9]} 33. Rc8+ {[%clk 0:01:01]}
33... Kd7 {[%clk 0:00:30.3]} 34. Rb8 {[%clk 0:01:01.7]} 34... Kc7 {[%clk
0:00:28.2]} 35. Ba7 {[%clk 0:00:51.2]} 35... f4 {[%clk 0:00:20.8]} 36. Rh8
{[%clk 0:00:36.4]} 36... Ng5 {[%clk 0:00:17.5]} 37. h4 {[%clk 0:00:34.2]} 37...
Ne6 {[%clk 0:00:15.6]} 38. Kc3 {[%clk 0:00:32.7]} 38... b6 {[%clk 0:00:14.8]}
39. Rb8 {[%clk 0:00:32.3]} 39... e3 {[%clk 0:00:13.4]} 40. fxe3 {[%clk
0:00:31.5]} 40... fxe3 {[%clk 0:00:13.2]} 41. Rxb6 {[%clk 0:00:31.4]} 41... e2
{[%clk 0:00:13.2]} 42. Rc6+ {[%clk 0:00:29.3]} 42... Kb7 {[%clk 0:00:13]} 43.
Bf2 {[%clk 0:00:29.9]} 43... Nf4 {[%clk 0:00:11]} 44. Rb6+ {[%clk 0:00:29.3]}
44... Kc7 {[%clk 0:00:10.8]} 45. Rc6+ {[%clk 0:00:30]} 45... Kb7 {[%clk
0:00:11.2]} 46. g3 {[%clk 0:00:25.3]} 46... Ng2 {[%clk 0:00:10.6]} 47. c5 {[%clk
0:00:20.4]} 47... e1=Q+ {[%clk 0:00:10.1]} 48. Bxe1 {[%clk 0:00:21]} 48... Nxe1
{[%clk 0:00:11]} 49. Rf6 {[%clk 0:00:21.2]} 49... Re3+ {[%clk 0:00:10.2]} 50.
Kd4 {[%clk 0:00:21.2]} 50... Rxg3 {[%clk 0:00:10]} 51. Rf7+ {[%clk 0:00:21.9]}
51... Kc8 {[%clk 0:00:10.2]} 52. c6 {[%clk 0:00:22.6]} 52... Nc2+ {[%clk
0:00:10.6]} 53. Kc5 {[%clk 0:00:19.9]} 53... Na3 {[%clk 0:00:05]} 54. Rf8+
{[%clk 0:00:19.8]} 54... Kc7 {[%clk 0:00:04.1]} 55. b6# {[%clk 0:00:20.7]} 1-0

[Event "Early-Titled-Tuesday-Blitz-September-12-2023"]
[Site "Chess.com"]
[Date "2023.09.12"]
[Round "2"]
[White "Jackalhead_Anubis"]
[Black "Willychess95"]
[Result "0-1"]
[WhiteElo "2412"]
[BlackElo "2704"]
[TimeControl "180+1"]
[EndTime "8:18:47 PDT"]
[Termination "Willychess95 won by resignation"]

1. e4 {[%clk 0:03:00.9]} 1... c5 {[%clk 0:02:31.9]} 2. Nf3 {[%clk 0:02:59.8]}
2... d6 {[%clk 0:02:30.7]} 3. d4 {[%clk 0:02:58.3]} 3... cxd4 {[%clk 0:02:30.6]}
4. Nxd4 {[%clk 0:02:59.2]} 4... Nf6 {[%clk 0:02:30.4]} 5. Nc3 {[%clk 0:02:58]}
5... g6 {[%clk 0:02:30.2]} 6. Be3 {[%clk 0:02:56.4]} 6... a6 {[%clk 0:02:29.7]}
7. f3 {[%clk 0:02:54.4]} 7... Bg7 {[%clk 0:02:29]} 8. g4 {[%clk 0:02:50.4]} 8...
b5 {[%clk 0:02:27]} 9. a4 {[%clk 0:02:49]} 9... bxa4 {[%clk 0:02:25]} 10. Rxa4
{[%clk 0:02:42.2]} 10... O-O {[%clk 0:02:19.2]} 11. h4 {[%clk 0:02:41.8]} 11...
Bb7 {[%clk 0:02:16.9]} 12. h5 {[%clk 0:02:40.8]} 12... e5 {[%clk 0:02:13.9]} 13.
Nde2 {[%clk 0:02:37.7]} 13... d5 {[%clk 0:02:13.2]} 14. hxg6 {[%clk 0:02:18.6]}
14... d4 {[%clk 0:01:45.7]} 15. Nxd4 {[%clk 0:02:02]} 15... exd4 {[%clk
0:01:43.4]} 16. Rxd4 {[%clk 0:02:02.9]} 16... Qc7 {[%clk 0:01:36.3]} 17. g5
{[%clk 0:01:51.2]} 17... Qg3+ {[%clk 0:01:25.1]} 18. Ke2 {[%clk 0:01:44.4]}
18... fxg6 {[%clk 0:00:43.3]} 19. gxf6 {[%clk 0:01:43.2]} 19... Bxf6 {[%clk
0:00:43.6]} 20. Rh3 {[%clk 0:01:34.5]} 20... Qc7 {[%clk 0:00:41]} 21. Rd3 {[%clk
0:01:30.4]} 21... a5 {[%clk 0:00:33.7]} 22. Kf2 {[%clk 0:01:22]} 22... Ba6
{[%clk 0:00:28.2]} 23. Nd5 {[%clk 0:01:21.3]} 23... Qf7 {[%clk 0:00:25.9]} 24.
Nxf6+ {[%clk 0:01:16.3]} 24... Qxf6 {[%clk 0:00:26.4]} 25. Rd6 {[%clk
0:01:11.9]} 25... Qf7 {[%clk 0:00:19.3]} 26. c4 {[%clk 0:00:22.4]} 26... Bc8
{[%clk 0:00:15.9]} 27. Rh1 {[%clk 0:00:20]} 27... Nd7 {[%clk 0:00:14.6]} 28. c5
{[%clk 0:00:19.7]} 28... Ne5 {[%clk 0:00:14.1]} 29. Be2 {[%clk 0:00:19.6]} 29...
Ba6 {[%clk 0:00:13.6]} 30. Rxa6 {[%clk 0:00:18.1]} 30... Rxa6 {[%clk 0:00:13.7]}
31. Bxa6 {[%clk 0:00:18.1]} 31... Nxf3 {[%clk 0:00:14]} 32. Ke2 {[%clk
0:00:18.2]} 32... Qa2 {[%clk 0:00:05.3]} 33. Qc2 {[%clk 0:00:17.6]} 33... Ne5
{[%clk 0:00:04.7]} 34. Bd4 {[%clk 0:00:16.8]} 34... Qe6 {[%clk 0:00:04.5]} 35.
Bxe5 {[%clk 0:00:16.8]} 35... Qg4+ {[%clk 0:00:04.1]} 36. Kd2 {[%clk 0:00:15.9]}
36... Rf2+ {[%clk 0:00:04.4]} 37. Kc1 {[%clk 0:00:16]} 37... Rxc2+ {[%clk
0:00:04.8]} 38. Kxc2 {[%clk 0:00:16.3]} 38... Qxe4+ {[%clk 0:00:05.3]} 39. Kb3
{[%clk 0:00:15.5]} 39... Qxh1 {[%clk 0:00:06.2]} 40. Bc4+ {[%clk 0:00:15.7]}
40... Kf8 {[%clk 0:00:06.7]} 41. Bd6+ {[%clk 0:00:16.2]} 41... Ke8 {[%clk
0:00:07.3]} 42. Bb5+ {[%clk 0:00:16.6]} 42... Kd8 {[%clk 0:00:07.7]} 43. c6
{[%clk 0:00:15.6]} 43... Qd1+ {[%clk 0:00:08.2]} 44. Ka3 {[%clk 0:00:15.7]}
44... Qxd6+ {[%clk 0:00:09.1]} 45. Ka4 {[%clk 0:00:16.3]} 45... Kc7 {[%clk
0:00:10]} 46. Kb3 {[%clk 0:00:14.5]} 46... Kb6 {[%clk 0:00:10.1]} 47. Bc4 {[%clk
0:00:14.2]} 47... Qxc6 {[%clk 0:00:09.6]} 48. Kc3 {[%clk 0:00:14.3]} 48... Qc5
{[%clk 0:00:10.5]} 49. b3 {[%clk 0:00:15.1]} 49... Qb4+ {[%clk 0:00:10.9]} 50.
Kb2 {[%clk 0:00:15.8]} 50... Kc5 {[%clk 0:00:11.8]} 51. Ka2 {[%clk 0:00:16.4]}
51... a4 {[%clk 0:00:12.3]} 52. Bg8 {[%clk 0:00:17.2]} 52... axb3+ {[%clk
0:00:12.5]} 53. Bxb3 {[%clk 0:00:18.1]} 53... Kd4 {[%clk 0:00:13]} 54. Bg8
{[%clk 0:00:18.6]} 54... Kc3 {[%clk 0:00:13.9]} 0-1

[Event "Early-Titled-Tuesday-Blitz-September-12-2023"]
[Site "Chess.com"]
[Date "2023.09.12"]
[Round "2"]
[White "Hope_6"]
[Black "IngOscarArdila"]
[Result "1-0"]
[WhiteElo "2704"]
[BlackElo "2317"]
[TimeControl "180+1"]
[EndTime "8:18:48 PDT"]
[Termination "Hope_6 won by resignation"]

1. d4 {[%clk 0:03:00]} 1... Nf6 {[%clk 0:02:59.2]} 2. c4 {[%clk 0:03:00.2]} 2...
e6 {[%clk 0:02:59.6]} 3. Nf3 {[%clk 0:03:00.1]} 3... Bb4+ {[%clk 0:02:59.2]} 4.
Nbd2 {[%clk 0:02:59.8]} 4... O-O {[%clk 0:02:58.5]} 5. a3 {[%clk 0:02:56.2]}
5... Be7 {[%clk 0:02:57.7]} 6. e4 {[%clk 0:02:55.7]} 6... d6 {[%clk 0:02:57.8]}
7. Bd3 {[%clk 0:02:53.5]} 7... Nbd7 {[%clk 0:02:56.8]} 8. O-O {[%clk 0:02:52.5]}
8... e5 {[%clk 0:02:55.2]} 9. b4 {[%clk 0:02:51.2]} 9... Re8 {[%clk 0:02:54]}
10. Bb2 {[%clk 0:02:50.7]} 10... exd4 {[%clk 0:02:52.3]} 11. Nxd4 {[%clk
0:02:50.6]} 11... Ne5 {[%clk 0:02:50.8]} 12. Bc2 {[%clk 0:02:39]} 12... c5
{[%clk 0:02:48.6]} 13. N4f3 {[%clk 0:02:26]} 13... Bg4 {[%clk 0:02:39.5]} 14.
bxc5 {[%clk 0:02:21.9]} 14... Nxf3+ {[%clk 0:02:32.7]} 15. Nxf3 {[%clk
0:02:18.1]} 15... dxc5 {[%clk 0:02:31.4]} 16. e5 {[%clk 0:02:08.7]} 16... Qxd1
{[%clk 0:02:27.8]} 17. Raxd1 {[%clk 0:02:08.3]} 17... Nh5 {[%clk 0:02:07.7]} 18.
Be4 {[%clk 0:01:59.4]} 18... Nf4 {[%clk 0:02:02.6]} 19. h3 {[%clk 0:01:50.6]}
19... Be6 {[%clk 0:02:00.8]} 20. Bd5 {[%clk 0:01:34.7]} 20... Red8 {[%clk
0:01:45]} 21. Bxe6 {[%clk 0:01:32.8]} 21... Nxe6 {[%clk 0:01:44.2]} 22. g3
{[%clk 0:01:29.4]} 22... Kf8 {[%clk 0:01:41.2]} 23. Rd5 {[%clk 0:01:27.6]} 23...
Nc7 {[%clk 0:01:35.7]} 24. Rdd1 {[%clk 0:01:24.4]} 24... Ke8 {[%clk 0:01:34.5]}
25. Kg2 {[%clk 0:01:17.5]} 25... Rxd1 {[%clk 0:01:31.4]} 26. Rxd1 {[%clk
0:01:17.3]} 26... Rd8 {[%clk 0:01:32.3]} 27. Rxd8+ {[%clk 0:01:16]} 27... Kxd8
{[%clk 0:01:32.3]} 28. Nd2 {[%clk 0:01:16]} 28... Kd7 {[%clk 0:01:29.4]} 29. f4
{[%clk 0:01:15.1]} 29... g6 {[%clk 0:01:29]} 30. Kf3 {[%clk 0:01:14.7]} 30... h5
{[%clk 0:01:28.5]} 31. g4 {[%clk 0:01:13.1]} 31... hxg4+ {[%clk 0:01:27.7]} 32.
hxg4 {[%clk 0:01:14]} 32... a6 {[%clk 0:01:19]} 33. Ke4 {[%clk 0:01:06.2]} 33...
Kc6 {[%clk 0:01:16.9]} 34. f5 {[%clk 0:01:05.4]} 34... gxf5+ {[%clk 0:01:17]}
35. gxf5 {[%clk 0:01:05.9]} 35... b5 {[%clk 0:01:14.6]} 36. cxb5+ {[%clk
0:00:53.3]} 36... axb5 {[%clk 0:01:14.4]} 37. Nf3 {[%clk 0:00:53.5]} 37... Nd5
{[%clk 0:00:45.4]} 38. f6 {[%clk 0:00:52.7]} 38... Bf8 {[%clk 0:00:43.1]} 39.
Ng5 {[%clk 0:00:51.8]} 39... Nb6 {[%clk 0:00:37.1]} 40. Nxf7 {[%clk 0:00:45.9]}
40... Nc4 {[%clk 0:00:37]} 41. Bc1 {[%clk 0:00:45.2]} 41... Kd7 {[%clk
0:00:30.6]} 42. Ng5 {[%clk 0:00:32.5]} 42... b4 {[%clk 0:00:29.6]} 43. axb4
{[%clk 0:00:29.6]} 43... cxb4 {[%clk 0:00:29.6]} 44. e6+ {[%clk 0:00:29.4]}
44... Kd8 {[%clk 0:00:30]} 45. Kd5 {[%clk 0:00:24.3]} 45... Nb6+ {[%clk
0:00:20.2]} 46. Kc6 {[%clk 0:00:23.7]} 46... Nc8 {[%clk 0:00:20.4]} 47. Nf7+
{[%clk 0:00:17.4]} 47... Ke8 {[%clk 0:00:19.8]} 48. Ne5 {[%clk 0:00:13.5]} 48...
b3 {[%clk 0:00:18.7]} 49. Ng6 {[%clk 0:00:11.9]} 49... Bb4 {[%clk 0:00:17.2]}
50. f7+ {[%clk 0:00:10.5]} 50... Kd8 {[%clk 0:00:17.1]} 51. Bg5+ {[%clk
0:00:09.8]} 51... Be7 {[%clk 0:00:13.3]} 1-0

[Event "Early-Titled-Tuesday-Blitz-September-12-2023"]
[Site "Chess.com"]
[Date "2023.09.12"]
[Round "2"]
[White "Bugcrusher"]
[Black "AradNazari"]
[Result "1-0"]
[WhiteElo "2458"]
[BlackElo "2729"]
[TimeControl "180+1"]
[EndTime "8:18:49 PDT"]
[Termination "Bugcrusher won by resignation"]

1. d4 {[%clk 0:03:00.9]} 1... Nf6 {[%clk 0:02:59.3]} 2. c4 {[%clk 0:03:00.7]}
2... g6 {[%clk 0:02:59.9]} 3. Nc3 {[%clk 0:03:00.5]} 3... d5 {[%clk 0:03:00.3]}
4. cxd5 {[%clk 0:03:00.9]} 4... Nxd5 {[%clk 0:03:01.2]} 5. e4 {[%clk 0:03:01.4]}
5... Nxc3 {[%clk 0:03:01.9]} 6. bxc3 {[%clk 0:03:02]} 6... Bg7 {[%clk
0:03:02.7]} 7. Bc4 {[%clk 0:03:02.4]} 7... c5 {[%clk 0:03:02.2]} 8. Be3 {[%clk
0:03:01.8]} 8... O-O {[%clk 0:03:02.5]} 9. Ne2 {[%clk 0:03:01.7]} 9... Nc6
{[%clk 0:02:59.9]} 10. Rc1 {[%clk 0:03:01.1]} 10... Bg4 {[%clk 0:02:59.9]} 11.
f3 {[%clk 0:02:56.1]} 11... Bd7 {[%clk 0:03:00.3]} 12. h4 {[%clk 0:02:50]} 12...
Qa5 {[%clk 0:02:56.6]} 13. Kf1 {[%clk 0:02:42.2]} 13... Rfd8 {[%clk 0:02:39.3]}
14. h5 {[%clk 0:02:35.3]} 14... cxd4 {[%clk 0:02:26.9]} 15. cxd4 {[%clk
0:02:32.8]} 15... Be8 {[%clk 0:02:19.3]} 16. hxg6 {[%clk 0:02:28.5]} 16... hxg6
{[%clk 0:02:20.2]} 17. Bb3 {[%clk 0:02:20]} 17... Nxd4 {[%clk 0:02:10]} 18. Nxd4
{[%clk 0:02:19.6]} 18... e5 {[%clk 0:02:10.6]} 19. Bd2 {[%clk 0:02:05.1]} 19...
Qa6+ {[%clk 0:01:58.9]} 20. Bc4 {[%clk 0:02:04.6]} 20... b5 {[%clk 0:01:45.7]}
21. Bd5 {[%clk 0:01:57.9]} 21... Rxd5 {[%clk 0:01:39.8]} 22. exd5 {[%clk
0:01:57.3]} 22... exd4 {[%clk 0:01:40.4]} 23. Bh6 {[%clk 0:01:50.4]} 23... Bf6
{[%clk 0:01:30.2]} 24. Qd2 {[%clk 0:01:44.2]} 24... Qd6 {[%clk 0:01:09.1]} 25.
Bg5 {[%clk 0:01:23.5]} 25... Be5 {[%clk 0:01:02.9]} 26. Qf2 {[%clk 0:01:13.9]}
26... Qxd5 {[%clk 0:00:38.6]} 27. Qh4 {[%clk 0:01:13.3]} 27... Bg7 {[%clk
0:00:36.8]} 28. Bf6 {[%clk 0:01:06.9]} 28... Qh5 {[%clk 0:00:27.9]} 29. Bxg7
{[%clk 0:01:03.9]} 29... Qxh4 {[%clk 0:00:26.1]} 30. Rxh4 {[%clk 0:01:04.1]}
30... Kxg7 {[%clk 0:00:26.9]} 31. Rxd4 {[%clk 0:01:04.7]} 31... a5 {[%clk
0:00:24.7]} 32. Rc7 {[%clk 0:01:01.9]} 32... Kf8 {[%clk 0:00:23]} 33. a3 {[%clk
0:01:00.5]} 33... Rb8 {[%clk 0:00:20.6]} 34. Ra7 {[%clk 0:00:53.5]} 34... b4
{[%clk 0:00:14.2]} 35. Rxa5 {[%clk 0:00:53.1]} 35... bxa3 {[%clk 0:00:10.9]} 36.
Rxa3 {[%clk 0:00:52.9]} 36... Rb1+ {[%clk 0:00:11]} 37. Kf2 {[%clk 0:00:52.6]}
37... Rb2+ {[%clk 0:00:11.4]} 38. Kg3 {[%clk 0:00:52]} 38... Rb7 {[%clk
0:00:11.7]} 39. Rc3 {[%clk 0:00:49.2]} 39... Bd7 {[%clk 0:00:09.8]} 40. Kf4
{[%clk 0:00:49.2]} 40... Be6 {[%clk 0:00:10.3]} 41. g4 {[%clk 0:00:49]} 41...
Kg7 {[%clk 0:00:10.6]} 42. Kg3 {[%clk 0:00:48.8]} 42... Kf6 {[%clk 0:00:10.3]}
43. f4 {[%clk 0:00:48.6]} 43... Rb5 {[%clk 0:00:09.5]} 44. Re3 {[%clk
0:00:44.4]} 44... Ra5 {[%clk 0:00:09.9]} 45. Rde4 {[%clk 0:00:43.3]} 45... Rb5
{[%clk 0:00:10]} 46. Re5 {[%clk 0:00:43.4]} 46... Rb4 {[%clk 0:00:06.3]} 47. Rc5
{[%clk 0:00:42.9]} 47... Ra4 {[%clk 0:00:06.2]} 48. Rf3 {[%clk 0:00:42.8]} 48...
Rb4 {[%clk 0:00:06.2]} 49. f5 {[%clk 0:00:41.2]} 49... gxf5 {[%clk 0:00:06.5]}
50. gxf5 {[%clk 0:00:41.6]} 50... Bb3 {[%clk 0:00:07]} 51. Rc6+ {[%clk
0:00:36.9]} 51... Kg5 {[%clk 0:00:07.3]} 52. f6 {[%clk 0:00:35]} 52... Kg6
{[%clk 0:00:06.3]} 53. Rf4 {[%clk 0:00:33.2]} 53... Rb5 {[%clk 0:00:06.5]} 54.
Rg4+ {[%clk 0:00:31.5]} 54... Kf5 {[%clk 0:00:06.8]} 55. Rf4+ {[%clk 0:00:31]}
55... Kg6 {[%clk 0:00:06.7]} 56. Rc8 {[%clk 0:00:29.8]} 56... Be6 {[%clk
0:00:07.1]} 57. Rg8+ {[%clk 0:00:29.5]} 57... Kh7 {[%clk 0:00:07.4]} 58. Rg7+
{[%clk 0:00:29.7]} 58... Kh6 {[%clk 0:00:08.1]} 59. Rh4+ {[%clk 0:00:29.9]}
59... Rh5 {[%clk 0:00:08.7]} 60. Rxh5+ {[%clk 0:00:29.2]} 60... Kxh5 {[%clk
0:00:09.6]} 61. Kf4 {[%clk 0:00:29]} 61... Kh6 {[%clk 0:00:10.5]} 62. Ke5 {[%clk
0:00:29.1]} 62... Ba2 {[%clk 0:00:11.4]} 63. Kd6 {[%clk 0:00:29.1]} 63... Bb3
{[%clk 0:00:11.9]} 64. Ke7 {[%clk 0:00:29.4]} 1-0

[Event "Early-Titled-Tuesday-Blitz-September-12-2023"]
[Site "Chess.com"]
[Date "2023.09.12"]
[Round "2"]
[White "ferrufino64"]
[Black "infinitegiantkiller"]
[Result "0-1"]
[WhiteElo "2259"]
[BlackElo "2497"]
[TimeControl "180+1"]
[EndTime "8:18:49 PDT"]
[Termination "infinitegiantkiller won by checkmate"]

1. e4 {[%clk 0:03:00.9]} 1... c5 {[%clk 0:02:58.3]} 2. Nf3 {[%clk 0:03:00.5]}
2... Nc6 {[%clk 0:02:57]} 3. d4 {[%clk 0:03:00.6]} 3... cxd4 {[%clk 0:02:57.1]}
4. Nxd4 {[%clk 0:03:01.1]} 4... g6 {[%clk 0:02:57.8]} 5. c4 {[%clk 0:02:57.3]}
5... Bg7 {[%clk 0:02:54.8]} 6. Be3 {[%clk 0:02:57.3]} 6... Nf6 {[%clk
0:02:53.6]} 7. Nc3 {[%clk 0:02:57.6]} 7... d6 {[%clk 0:02:52.8]} 8. Be2 {[%clk
0:02:57.7]} 8... O-O {[%clk 0:02:51.7]} 9. O-O {[%clk 0:02:57.9]} 9... Nxd4
{[%clk 0:02:52.1]} 10. Bxd4 {[%clk 0:02:58.1]} 10... Be6 {[%clk 0:02:53]} 11.
Rc1 {[%clk 0:02:51.8]} 11... a6 {[%clk 0:02:50.1]} 12. f4 {[%clk 0:02:49.4]}
12... Rc8 {[%clk 0:02:49.8]} 13. b3 {[%clk 0:02:48.4]} 13... Qa5 {[%clk
0:02:42.1]} 14. Kh1 {[%clk 0:02:42.8]} 14... b5 {[%clk 0:02:33.9]} 15. cxb5
{[%clk 0:02:39.3]} 15... axb5 {[%clk 0:02:34.8]} 16. f5 {[%clk 0:02:33.9]} 16...
Bd7 {[%clk 0:02:22.7]} 17. Bxf6 {[%clk 0:02:26.1]} 17... Bxf6 {[%clk 0:01:54.3]}
18. Nd5 {[%clk 0:02:26.1]} 18... Rxc1 {[%clk 0:01:45.6]} 19. Qxc1 {[%clk
0:02:16.9]} 19... Qxa2 {[%clk 0:01:28.8]} 20. Qd1 {[%clk 0:02:03.9]} 20... Qb2
{[%clk 0:01:11.9]} 21. fxg6 {[%clk 0:01:58.6]} 21... fxg6 {[%clk 0:01:08.4]} 22.
Bg4 {[%clk 0:01:56.9]} 22... Bxg4 {[%clk 0:00:51.6]} 23. Qxg4 {[%clk 0:01:56.7]}
23... Qxb3 {[%clk 0:00:24.4]} 24. Qe6+ {[%clk 0:01:56.2]} 24... Kg7 {[%clk
0:00:24.8]} 25. e5 {[%clk 0:01:40.1]} 25... Bg5 {[%clk 0:00:12.8]} 26. Rg1
{[%clk 0:01:29]} 26... Qc4 {[%clk 0:00:09.5]} 27. h3 {[%clk 0:01:26.8]} 27...
dxe5 {[%clk 0:00:08.1]} 28. Qd7 {[%clk 0:00:51.6]} 28... Bf6 {[%clk 0:00:05.4]}
29. Nc7 {[%clk 0:00:47]} 29... Rf7 {[%clk 0:00:04.8]} 30. Nxb5 {[%clk
0:00:41.9]} 30... Qe4 {[%clk 0:00:03.3]} 31. Nc7 {[%clk 0:00:34.5]} 31... Qf5
{[%clk 0:00:03.8]} 32. Ne6+ {[%clk 0:00:34.6]} 32... Kh6 {[%clk 0:00:04.3]} 33.
Qd2+ {[%clk 0:00:32.8]} 33... Bg5 {[%clk 0:00:03.7]} 34. Qd5 {[%clk 0:00:32.2]}
34... Bf4 {[%clk 0:00:03.2]} 35. Nd8 {[%clk 0:00:29]} 35... Rf6 {[%clk
0:00:03.4]} 36. g4 {[%clk 0:00:25.2]} 36... Qc2 {[%clk 0:00:02.6]} 37. Nf7+
{[%clk 0:00:25.4]} 37... Rxf7 {[%clk 0:00:01.9]} 38. g5+ {[%clk 0:00:23.4]}
38... Kg7 {[%clk 0:00:01.6]} 39. Qg2 {[%clk 0:00:23.6]} 39... Qxg2+ {[%clk
0:00:01]} 40. Kxg2 {[%clk 0:00:24.5]} 40... Be3 {[%clk 0:00:01.1]} 41. Re1
{[%clk 0:00:25.4]} 41... Bd4 {[%clk 0:00:01.7]} 42. Re2 {[%clk 0:00:26.3]} 42...
Rf5 {[%clk 0:00:02]} 43. h4 {[%clk 0:00:26.9]} 43... Kf7 {[%clk 0:00:02.4]} 44.
Kh3 {[%clk 0:00:25.1]} 44... Ke6 {[%clk 0:00:03.3]} 45. Kg4 {[%clk 0:00:26]}
45... Kd5 {[%clk 0:00:03.6]} 46. Ra2 {[%clk 0:00:25.8]} 46... Rf4+ {[%clk
0:00:04.5]} 47. Kg3 {[%clk 0:00:25.6]} 47... Rf7 {[%clk 0:00:04.6]} 48. Ra5+
{[%clk 0:00:26.2]} 48... Ke6 {[%clk 0:00:05.5]} 49. Ra2 {[%clk 0:00:26.9]} 49...
Kf5 {[%clk 0:00:06.1]} 50. Rc2 {[%clk 0:00:24.8]} 50... e4 {[%clk 0:00:06.4]}
51. Rc1 {[%clk 0:00:25.2]} 51... e5 {[%clk 0:00:06.7]} 52. Rf1+ {[%clk
0:00:25.8]} 52... Ke6 {[%clk 0:00:07.4]} 53. Re1 {[%clk 0:00:25.8]} 53... e3
{[%clk 0:00:07.8]} 54. h5 {[%clk 0:00:26.2]} 54... Rf5 {[%clk 0:00:07.7]} 55.
hxg6 {[%clk 0:00:27.1]} 55... hxg6 {[%clk 0:00:08.3]} 56. Kg4 {[%clk 0:00:27.2]}
56... Rf4+ {[%clk 0:00:08.3]} 57. Kg3 {[%clk 0:00:27.5]} 57... Kf5 {[%clk
0:00:09.2]} 58. Rh1 {[%clk 0:00:26.7]} 58... Kxg5 {[%clk 0:00:09.5]} 59. Rh8
{[%clk 0:00:27.6]} 59... Rf2 {[%clk 0:00:08.9]} 60. Re8 {[%clk 0:00:26.7]} 60...
Rf5 {[%clk 0:00:09.1]} 61. Rb8 {[%clk 0:00:25.7]} 61... e2 {[%clk 0:00:10]} 62.
Rb1 {[%clk 0:00:26.4]} 62... Bf2+ {[%clk 0:00:09.9]} 63. Kg2 {[%clk 0:00:26.5]}
63... e1=Q {[%clk 0:00:10.6]} 64. Rxe1 {[%clk 0:00:26.9]} 64... Bxe1 {[%clk
0:00:11.5]} 65. Kh3 {[%clk 0:00:27.6]} 65... Rf3+ {[%clk 0:00:11.1]} 66. Kg2
{[%clk 0:00:28.5]} 66... Rg3+ {[%clk 0:00:11.2]} 67. Kh1 {[%clk 0:00:29.4]}
67... Bf2 {[%clk 0:00:10.6]} 68. Kh2 {[%clk 0:00:29.8]} 68... e4 {[%clk
0:00:10.9]} 69. Kh1 {[%clk 0:00:30.7]} 69... e3 {[%clk 0:00:11.6]} 70. Kh2
{[%clk 0:00:31.6]} 70... e2 {[%clk 0:00:12.1]} 71. Kh1 {[%clk 0:00:32.1]} 71...
e1=Q+ {[%clk 0:00:12.6]} 72. Kh2 {[%clk 0:00:33]} 72... Qg1# {[%clk 0:00:13.1]}
0-1